[Event "Titled Tuesday Blitz November 16 2021"]
[White "Kamsky, Gata"]
[Black "Lavrov, Maxim"]
[WhiteFideId "2000024"]
[BlackFideId "4166418"]
[WhiteElo "2645"]
[BlackElo "2192"]
[Result "1-0"]
[Round "04"]
[TimeControl "180+1"]
[Date "2021.11.16"]
[WhiteClock "0:02:09"]
[BlackClock "0:01:12"]

1. e4 {[%clk 0:03:00]}  e5 {[%clk 0:02:55]} 2. Nf3 {[%clk 0:03:00]}  Nc6 {[%clk 0:02:54]} 3. Bb5 {[%clk 0:03:00]}  a6 {[%clk 0:02:53]} 4. Ba4 {[%clk 0:02:58]}  Nf6 {[%clk 0:02:50]} 5. O-O {[%clk 0:02:58]}  Be7 {[%clk 0:02:49]} 6. Re1 {[%clk 0:02:57]}  b5 {[%clk 0:02:49]} 7. Bb3 {[%clk 0:02:57]}  O-O {[%clk 0:02:50]} 8. c3 {[%clk 0:02:57]}  d5 {[%clk 0:02:50]} 9. d4 {[%clk 0:02:56]}  dxe4 {[%clk 0:02:41]} 10. Nxe5 {[%clk 0:02:56]}  Bb7 {[%clk 0:02:38]} 11. Nxc6 {[%clk 0:02:51]}  Bxc6 {[%clk 0:02:37]} 12. Bg5 {[%clk 0:02:52]}  h6 {[%clk 0:02:17]} 13. Bxf6 {[%clk 0:02:46]}  Bxf6 {[%clk 0:02:16]} 14. Nd2 {[%clk 0:02:46]}  Re8 {[%clk 0:02:16]} 15. Qg4 {[%clk 0:02:44]}  Bd7 {[%clk 0:01:44]} 16. Qh5 {[%clk 0:02:40]}  Be6 {[%clk 0:01:39]} 17. Nxe4 {[%clk 0:02:38]}  Bxb3 {[%clk 0:01:38]} 18. axb3 {[%clk 0:02:36]}  Be7 {[%clk 0:01:30]} 19. b4 {[%clk 0:02:36]}  c6 {[%clk 0:01:28]} 20. Re3 {[%clk 0:02:14]}  a5 {[%clk 0:01:21]} 21. bxa5 {[%clk 0:02:14]}  Rxa5 {[%clk 0:01:20]} 22. Rae1 {[%clk 0:02:10]}  Kh8 {[%clk 0:01:12]} 23. Qxf7 {[%clk 0:02:09]} 1-0


[Site "https://www.chess.com"]

[Event "Titled Tuesday Blitz November 16 2021"]
[White "Kryakvin, Dmitry"]
[Black "Nesterov, Arseniy"]
[WhiteFideId "4153278"]
[BlackFideId "24198455"]
[WhiteElo "2372"]
[BlackElo "2489"]
[Result "1/2-1/2"]
[Round "04"]
[TimeControl "180+1"]
[Date "2021.11.16"]
[WhiteClock "0:00:40"]
[BlackClock "0:00:34"]

1. d4 {[%clk 0:01:55]}  d5 {[%clk 0:02:56]} 2. Nf3 {[%clk 0:01:54]}  Nf6 {[%clk 0:02:57]} 3. c4 {[%clk 0:01:53]}  e6 {[%clk 0:02:57]} 4. Nc3 {[%clk 0:01:53]}  c5 {[%clk 0:02:53]} 5. cxd5 {[%clk 0:01:52]}  exd5 {[%clk 0:02:54]} 6. g3 {[%clk 0:01:49]}  Nc6 {[%clk 0:02:54]} 7. Bg2 {[%clk 0:01:49]}  cxd4 {[%clk 0:02:55]} 8. Nxd4 {[%clk 0:01:48]}  Bc5 {[%clk 0:02:55]} 9. Nxc6 {[%clk 0:01:48]}  bxc6 {[%clk 0:02:56]} 10. O-O {[%clk 0:01:48]}  O-O {[%clk 0:02:56]} 11. Qc2 {[%clk 0:01:45]}  Bb6 {[%clk 0:02:54]} 12. Na4 {[%clk 0:01:42]}  Bd7 {[%clk 0:02:54]} 13. b3 {[%clk 0:01:29]}  Re8 {[%clk 0:02:51]} 14. e3 {[%clk 0:01:29]}  h5 {[%clk 0:02:46]} 15. Bb2 {[%clk 0:01:19]}  Ne4 {[%clk 0:02:36]} 16. Bd4 {[%clk 0:01:11]}  Bxd4 {[%clk 0:02:11]} 17. exd4 {[%clk 0:01:10]}  Qf6 {[%clk 0:02:11]} 18. Nc5 {[%clk 0:01:03]}  Bf5 {[%clk 0:02:03]} 19. Nxe4 {[%clk 0:00:55]}  Bxe4 {[%clk 0:02:04]} 20. Bxe4 {[%clk 0:00:55]}  Rxe4 {[%clk 0:02:05]} 21. Rac1 {[%clk 0:00:52]}  Rc8 {[%clk 0:01:48]} 22. Rfd1 {[%clk 0:00:50]}  Rxd4 {[%clk 0:01:40]} 23. Rxd4 {[%clk 0:00:48]}  Qxd4 {[%clk 0:01:41]} 24. Qf5 {[%clk 0:00:48]}  Rc7 {[%clk 0:00:46]} 25. Qxh5 {[%clk 0:00:46]}  Qd2 {[%clk 0:00:43]} 26. Ra1 {[%clk 0:00:42]}  Re7 {[%clk 0:00:40]} 27. Qd1 {[%clk 0:00:40]}  Re2 {[%clk 0:00:36]} 28. Qxd2 {[%clk 0:00:40]}  Rxd2 {[%clk 0:00:36]} 29. Rc1 {[%clk 0:00:40]}  Rxa2 {[%clk 0:00:34]} 1/2-1/2


[Site "https://www.chess.com"]

[Event "Titled Tuesday Blitz November 16 2021"]
[White "Lewtak, Damian"]
[Black "Triapishko, Alexandr"]
[WhiteFideId "1141724"]
[BlackFideId "14122286"]
[WhiteElo "2203"]
[BlackElo "2479"]
[Result "0-1"]
[Round "04"]
[TimeControl "180+1"]
[Date "2021.11.16"]
[WhiteClock "0:00:28"]
[BlackClock "0:00:22"]

1. d4 {[%clk 0:03:00]}  f5 {[%clk 0:02:43]} 2. g3 {[%clk 0:02:53]}  Nf6 {[%clk 0:02:43]} 3. Bg2 {[%clk 0:02:53]}  g6 {[%clk 0:02:43]} 4. Nf3 {[%clk 0:02:46]}  Bg7 {[%clk 0:02:43]} 5. O-O {[%clk 0:02:47]}  O-O {[%clk 0:02:43]} 6. Re1 {[%clk 0:02:48]}  d6 {[%clk 0:02:42]} 7. Nbd2 {[%clk 0:02:48]}  Nc6 {[%clk 0:02:34]} 8. e4 {[%clk 0:02:45]}  e5 {[%clk 0:02:27]} 9. dxe5 {[%clk 0:02:41]}  dxe5 {[%clk 0:02:20]} 10. exf5 {[%clk 0:02:41]}  Bxf5 {[%clk 0:02:08]} 11. Nh4 {[%clk 0:02:28]}  Bg4 {[%clk 0:02:06]} 12. Bf3 {[%clk 0:02:21]}  Bxf3 {[%clk 0:01:55]} 13. Ndxf3 {[%clk 0:02:22]}  e4 {[%clk 0:01:23]} 14. Ng5 {[%clk 0:02:17]}  Qxd1 {[%clk 0:01:17]} 15. Rxd1 {[%clk 0:02:16]}  Rfe8 {[%clk 0:01:16]} 16. Ng2 {[%clk 0:02:03]}  h6 {[%clk 0:01:09]} 17. Nh3 {[%clk 0:02:00]}  g5 {[%clk 0:01:10]} 18. Be3 {[%clk 0:01:50]}  Rad8 {[%clk 0:00:59]} 19. c3 {[%clk 0:01:31]}  Ng4 {[%clk 0:00:56]} 20. Ne1 {[%clk 0:01:25]}  b6 {[%clk 0:00:48]} 21. Kg2 {[%clk 0:01:19]}  Nce5 {[%clk 0:00:47]} 22. Bd4 {[%clk 0:01:16]}  Nc4 {[%clk 0:00:42]} 23. Bxg7 {[%clk 0:00:59]}  Kxg7 {[%clk 0:00:42]} 24. Rxd8 {[%clk 0:00:54]}  Rxd8 {[%clk 0:00:42]} 25. b3 {[%clk 0:00:54]}  Nce5 {[%clk 0:00:38]} 26. Rc1 {[%clk 0:00:51]}  Rd2 {[%clk 0:00:23]} 27. Nc2 {[%clk 0:00:28]}  Nd3 {[%clk 0:00:22]} 0-1


[Site "https://www.chess.com"]

[Event "Titled Tuesday Blitz November 16 2021"]
[White "Nagy, Gabor"]
[Black "Le, Tuan Minh"]
[WhiteFideId "737119"]
[BlackFideId "12401153"]
[WhiteElo "2534"]
[BlackElo "2450"]
[Result "0-1"]
[Round "04"]
[TimeControl "180+1"]
[Date "2021.11.16"]
[WhiteClock "0:00:38"]
[BlackClock "0:00:25"]

1. c4 {[%clk 0:03:00]}  c6 {[%clk 0:03:00]} 2. d4 {[%clk 0:02:59]}  d5 {[%clk 0:03:00]} 3. e3 {[%clk 0:02:58]}  Nf6 {[%clk 0:03:00]} 4. Nf3 {[%clk 0:02:57]}  Bf5 {[%clk 0:03:01]} 5. Nc3 {[%clk 0:02:54]}  e6 {[%clk 0:03:00]} 6. Nh4 {[%clk 0:02:55]}  Be4 {[%clk 0:03:00]} 7. f3 {[%clk 0:02:55]}  Bg6 {[%clk 0:03:01]} 8. g3 {[%clk 0:02:55]}  Nbd7 {[%clk 0:02:59]} 9. Bd2 {[%clk 0:02:55]}  Bd6 {[%clk 0:02:58]} 10. Qb3 {[%clk 0:02:53]}  Rb8 {[%clk 0:02:57]} 11. Kf2 {[%clk 0:02:46]}  O-O {[%clk 0:02:54]} 12. Be2 {[%clk 0:02:43]}  dxc4 {[%clk 0:02:48]} 13. Qxc4 {[%clk 0:02:40]}  e5 {[%clk 0:02:44]} 14. Nxg6 {[%clk 0:02:38]}  hxg6 {[%clk 0:02:44]} 15. Kg2 {[%clk 0:02:31]}  Re8 {[%clk 0:02:43]} 16. Rad1 {[%clk 0:02:27]}  Nb6 {[%clk 0:02:39]} 17. Qd3 {[%clk 0:02:24]}  exd4 {[%clk 0:02:34]} 18. Qxd4 {[%clk 0:02:23]}  Qe7 {[%clk 0:02:31]} 19. e4 {[%clk 0:02:11]}  Rbd8 {[%clk 0:02:31]} 20. Qf2 {[%clk 0:02:08]}  Bc5 {[%clk 0:02:24]} 21. Be3 {[%clk 0:02:07]}  Bxe3 {[%clk 0:02:17]} 22. Qxe3 {[%clk 0:02:08]}  Nfd5 {[%clk 0:02:18]} 23. Nxd5 {[%clk 0:02:01]}  cxd5 {[%clk 0:02:17]} 24. Bb5 {[%clk 0:02:01]}  Rf8 {[%clk 0:02:10]} 25. e5 {[%clk 0:01:55]}  d4 {[%clk 0:01:55]} 26. Qe2 {[%clk 0:01:35]}  a6 {[%clk 0:01:35]} 27. Bc4 {[%clk 0:01:19]}  Nxc4 {[%clk 0:01:35]} 28. Qxc4 {[%clk 0:01:20]}  Qxe5 {[%clk 0:01:36]} 29. Rhe1 {[%clk 0:01:20]}  Qf6 {[%clk 0:01:35]} 30. Re4 {[%clk 0:01:14]}  d3 {[%clk 0:01:31]} 31. Rd2 {[%clk 0:01:12]}  Rd7 {[%clk 0:01:26]} 32. Re3 {[%clk 0:00:59]}  Rfd8 {[%clk 0:01:20]} 33. b3 {[%clk 0:00:58]}  b5 {[%clk 0:01:19]} 34. Qe4 {[%clk 0:00:55]}  Qc3 {[%clk 0:01:15]} 35. Rf2 {[%clk 0:00:50]}  Qc1 {[%clk 0:01:11]} 36. Qg4 {[%clk 0:00:43]}  Rd4 {[%clk 0:00:39]} 37. Re4 {[%clk 0:00:38]}  Rxe4 {[%clk 0:00:27]} 38. fxe4 {[%clk 0:00:39]}  d2 {[%clk 0:00:26]} 39. Qg5 {[%clk 0:00:39]}  d1=Q {[%clk 0:00:25]} 40. Qxd8+ {[%clk 0:00:38]}  Qxd8 {[%clk 0:00:25]} 0-1


[Site "https://www.chess.com"]

[Event "Titled Tuesday Blitz November 16 2021"]
[White "Ozen, Bahadir"]
[Black "Zhigalko, Sergei"]
[WhiteFideId "6337058"]
[BlackFideId "13502956"]
[WhiteElo "2503"]
[BlackElo "2662"]
[Result "1/2-1/2"]
[Round "04"]
[TimeControl "180+1"]
[Date "2021.11.16"]
[WhiteClock "0:00:56"]
[BlackClock "0:00:13"]

1. d4 {[%clk 0:03:00]}  Nf6 {[%clk 0:02:56]} 2. c4 {[%clk 0:02:56]}  e6 {[%clk 0:02:57]} 3. Nc3 {[%clk 0:02:56]}  Bb4 {[%clk 0:02:56]} 4. Qc2 {[%clk 0:02:53]}  O-O {[%clk 0:02:56]} 5. a3 {[%clk 0:02:52]}  Bxc3+ {[%clk 0:02:56]} 6. Qxc3 {[%clk 0:02:53]}  d6 {[%clk 0:02:57]} 7. Bg5 {[%clk 0:02:49]}  Nbd7 {[%clk 0:02:57]} 8. e3 {[%clk 0:02:49]}  b6 {[%clk 0:02:56]} 9. Ne2 {[%clk 0:02:47]}  Bb7 {[%clk 0:02:53]} 10. Qd3 {[%clk 0:02:45]}  h6 {[%clk 0:02:41]} 11. Bh4 {[%clk 0:02:44]}  e5 {[%clk 0:02:41]} 12. Nc3 {[%clk 0:02:40]}  Re8 {[%clk 0:02:41]} 13. Be2 {[%clk 0:02:38]}  Nf8 {[%clk 0:02:11]} 14. O-O {[%clk 0:02:30]}  Ng6 {[%clk 0:02:09]} 15. Bg3 {[%clk 0:02:29]}  Qe7 {[%clk 0:02:05]} 16. Rfe1 {[%clk 0:02:19]}  Rad8 {[%clk 0:01:57]} 17. Rad1 {[%clk 0:02:19]}  h5 {[%clk 0:01:40]} 18. h3 {[%clk 0:02:18]}  h4 {[%clk 0:01:39]} 19. Bh2 {[%clk 0:02:18]}  Nh7 {[%clk 0:01:19]} 20. Nd5 {[%clk 0:02:04]}  Bxd5 {[%clk 0:00:58]} 21. cxd5 {[%clk 0:02:05]}  Qg5 {[%clk 0:00:58]} 22. Rc1 {[%clk 0:01:49]}  Re7 {[%clk 0:00:55]} 23. Rc3 {[%clk 0:01:42]}  e4 {[%clk 0:00:48]} 24. Qc2 {[%clk 0:01:39]}  Nf6 {[%clk 0:00:35]} 25. Rxc7 {[%clk 0:01:38]}  Nxd5 {[%clk 0:00:35]} 26. Rxe7 {[%clk 0:01:35]}  Qxe7 {[%clk 0:00:36]} 27. Qc6 {[%clk 0:01:27]}  Qe6 {[%clk 0:00:32]} 28. Rc1 {[%clk 0:01:23]}  Nge7 {[%clk 0:00:31]} 29. Qb7 {[%clk 0:01:23]}  Qd7 {[%clk 0:00:23]} 30. Qxd7 {[%clk 0:01:19]}  Rxd7 {[%clk 0:00:24]} 31. Bb5 {[%clk 0:01:19]}  Rd8 {[%clk 0:00:23]} 32. Kf1 {[%clk 0:01:18]}  f5 {[%clk 0:00:23]} 33. Ke2 {[%clk 0:01:18]}  Kf7 {[%clk 0:00:24]} 34. g3 {[%clk 0:01:01]}  hxg3 {[%clk 0:00:19]} 35. Bxg3 {[%clk 0:01:02]}  g5 {[%clk 0:00:19]} 36. Bh2 {[%clk 0:01:03]}  Ke6 {[%clk 0:00:18]} 37. Rg1 {[%clk 0:01:01]}  Rg8 {[%clk 0:00:17]} 38. Bc4 {[%clk 0:01:00]}  Rg7 {[%clk 0:00:16]} 39. Rg2 {[%clk 0:00:59]}  Kd7 {[%clk 0:00:12]} 40. Bb5+ {[%clk 0:00:55]}  Ke6 {[%clk 0:00:12]} 41. Bc4 {[%clk 0:00:55]}  Kd7 {[%clk 0:00:13]} 42. Bb5+ {[%clk 0:00:55]}  Ke6 {[%clk 0:00:13]} 43. Bc4 {[%clk 0:00:56]} 1/2-1/2


[Site "https://www.chess.com"]

[Event "Titled Tuesday Blitz November 16 2021"]
[White "Punin, Andrii"]
[Black "Tabatabaei, M. Amin"]
[WhiteFideId "14112639"]
[BlackFideId "12521213"]
[WhiteElo "2357"]
[BlackElo "2555"]
[Result "0-1"]
[Round "04"]
[TimeControl "180+1"]
[Date "2021.11.16"]
[WhiteClock "0:00:04"]
[BlackClock "0:01:41"]

1. e4 {[%clk 0:03:00]}  c5 {[%clk 0:02:58]} 2. Be2 {[%clk 0:02:59]}  Nc6 {[%clk 0:02:55]} 3. f4 {[%clk 0:02:59]}  d5 {[%clk 0:02:53]} 4. d3 {[%clk 0:02:59]}  g6 {[%clk 0:02:47]} 5. Nf3 {[%clk 0:02:59]}  Bg7 {[%clk 0:02:47]} 6. c3 {[%clk 0:02:59]}  dxe4 {[%clk 0:02:46]} 7. dxe4 {[%clk 0:02:58]}  Qxd1+ {[%clk 0:02:47]} 8. Bxd1 {[%clk 0:02:59]}  Nf6 {[%clk 0:02:48]} 9. Bc2 {[%clk 0:02:53]}  b6 {[%clk 0:02:45]} 10. h3 {[%clk 0:02:51]}  Bb7 {[%clk 0:02:44]} 11. Be3 {[%clk 0:02:51]}  e5 {[%clk 0:02:37]} 12. fxe5 {[%clk 0:02:43]}  Nd7 {[%clk 0:02:38]} 13. e6 {[%clk 0:02:42]}  fxe6 {[%clk 0:02:38]} 14. Nbd2 {[%clk 0:02:42]}  Nde5 {[%clk 0:02:38]} 15. O-O-O {[%clk 0:02:37]}  O-O-O {[%clk 0:02:35]} 16. Nxe5 {[%clk 0:02:28]}  Nxe5 {[%clk 0:02:36]} 17. Nf3 {[%clk 0:02:27]}  Nc4 {[%clk 0:02:27]} 18. Bg5 {[%clk 0:02:17]}  Rxd1+ {[%clk 0:02:27]} 19. Rxd1 {[%clk 0:02:18]}  h6 {[%clk 0:02:28]} 20. Bf4 {[%clk 0:02:13]}  g5 {[%clk 0:02:28]} 21. Bd2 {[%clk 0:02:04]}  Nxd2 {[%clk 0:02:25]} 22. Rxd2 {[%clk 0:02:03]}  Kc7 {[%clk 0:02:19]} 23. Kd1 {[%clk 0:01:59]}  Rf8 {[%clk 0:02:10]} 24. Ke2 {[%clk 0:01:58]}  b5 {[%clk 0:02:10]} 25. a3 {[%clk 0:01:56]}  Bf6 {[%clk 0:02:06]} 26. Rd1 {[%clk 0:01:44]}  a6 {[%clk 0:02:02]} 27. Nh2 {[%clk 0:01:37]}  Bg7 {[%clk 0:02:01]} 28. Rf1 {[%clk 0:01:34]}  Rxf1 {[%clk 0:01:59]} 29. Nxf1 {[%clk 0:01:28]}  Kd6 {[%clk 0:01:59]} 30. Ne3 {[%clk 0:01:25]}  h5 {[%clk 0:01:53]} 31. Kf3 {[%clk 0:01:23]}  Ke5 {[%clk 0:01:52]} 32. g4 {[%clk 0:01:14]}  h4 {[%clk 0:01:52]} 33. Nf1 {[%clk 0:01:12]}  Bf8 {[%clk 0:01:48]} 34. b4 {[%clk 0:01:02]}  Kd6 {[%clk 0:01:43]} 35. Ke3 {[%clk 0:01:00]}  Bg7 {[%clk 0:01:44]} 36. Kd2 {[%clk 0:00:56]}  Be5 {[%clk 0:01:43]} 37. Ne3 {[%clk 0:00:45]}  Bf4 {[%clk 0:01:43]} 38. Ke2 {[%clk 0:00:44]}  c4 {[%clk 0:01:44]} 39. Bb1 {[%clk 0:00:34]}  Ke5 {[%clk 0:01:43]} 40. Kf3 {[%clk 0:00:34]}  Bc6 {[%clk 0:01:41]} 41. Bc2 {[%clk 0:00:33]}  Bg3 {[%clk 0:01:42]} 42. Bb1 {[%clk 0:00:27]}  Be1 {[%clk 0:01:41]} 43. Nd1 {[%clk 0:00:27]}  Bd2 {[%clk 0:01:40]} 44. Ke2 {[%clk 0:00:23]}  Bc1 {[%clk 0:01:40]} 45. Nf2 {[%clk 0:00:18]}  Kf4 {[%clk 0:01:40]} 46. Kd1 {[%clk 0:00:07]}  Be3 {[%clk 0:01:39]} 47. Ke2 {[%clk 0:00:07]}  Bxf2 {[%clk 0:01:40]} 48. Kxf2 {[%clk 0:00:08]}  Bxe4 {[%clk 0:01:40]} 49. Bxe4 {[%clk 0:00:04]}  Kxe4 {[%clk 0:01:41]} 50. Ke2 {[%clk 0:00:04]}  e5 {[%clk 0:01:41]} 0-1


[Site "https://www.chess.com"]

[Event "Titled Tuesday Blitz November 16 2021"]
[White "Sarana, Alexey"]
[Black "Salinas Herrera, Pablo"]
[WhiteFideId "24133795"]
[BlackFideId "3407128"]
[WhiteElo "2689"]
[BlackElo "2541"]
[Result "1-0"]
[Round "04"]
[TimeControl "180+1"]
[Date "2021.11.16"]
[WhiteClock "0:00:21"]
[BlackClock "0:01:06"]

1. d4 {[%clk 0:03:00]}  d5 {[%clk 0:03:00]} 2. c4 {[%clk 0:02:59]}  c6 {[%clk 0:03:00]} 3. Nf3 {[%clk 0:02:59]}  Nf6 {[%clk 0:03:01]} 4. Nc3 {[%clk 0:02:59]}  e6 {[%clk 0:03:01]} 5. g3 {[%clk 0:02:58]}  Nbd7 {[%clk 0:02:58]} 6. Bg2 {[%clk 0:02:58]}  dxc4 {[%clk 0:02:59]} 7. a4 {[%clk 0:02:57]}  Be7 {[%clk 0:02:50]} 8. O-O {[%clk 0:02:57]}  O-O {[%clk 0:02:51]} 9. e4 {[%clk 0:02:58]}  a5 {[%clk 0:02:49]} 10. Qe2 {[%clk 0:02:57]}  b6 {[%clk 0:02:49]} 11. Rd1 {[%clk 0:02:56]}  Ba6 {[%clk 0:02:49]} 12. Bf4 {[%clk 0:02:53]}  Re8 {[%clk 0:02:48]} 13. Nd2 {[%clk 0:02:52]}  Qc8 {[%clk 0:02:38]} 14. Rac1 {[%clk 0:02:30]}  h6 {[%clk 0:02:25]} 15. Nxc4 {[%clk 0:02:14]}  Bf8 {[%clk 0:02:10]} 16. b3 {[%clk 0:01:51]}  e5 {[%clk 0:02:07]} 17. dxe5 {[%clk 0:01:47]}  Nxe5 {[%clk 0:02:07]} 18. Bxe5 {[%clk 0:01:22]}  Rxe5 {[%clk 0:02:05]} 19. Nb5 {[%clk 0:01:21]}  Rxb5 {[%clk 0:01:55]} 20. axb5 {[%clk 0:01:21]}  Bxb5 {[%clk 0:01:55]} 21. e5 {[%clk 0:01:21]}  Nd5 {[%clk 0:01:50]} 22. Qd2 {[%clk 0:01:00]}  Bxc4 {[%clk 0:01:38]} 23. bxc4 {[%clk 0:00:59]}  Nb4 {[%clk 0:01:39]} 24. Re1 {[%clk 0:00:40]}  Qe6 {[%clk 0:01:35]} 25. Be4 {[%clk 0:00:37]}  Be7 {[%clk 0:01:26]} 26. h4 {[%clk 0:00:37]}  Rd8 {[%clk 0:01:25]} 27. Qf4 {[%clk 0:00:37]}  a4 {[%clk 0:01:13]} 28. Bf5 {[%clk 0:00:30]}  g5 {[%clk 0:01:13]} 29. Qe4 {[%clk 0:00:27]}  Rd4 {[%clk 0:01:11]} 30. Qb1 {[%clk 0:00:21]}  Qxc4 {[%clk 0:01:04]} 31. Rxc4 {[%clk 0:00:20]}  Rxc4 {[%clk 0:01:05]} 32. e6 {[%clk 0:00:20]}  f6 {[%clk 0:01:05]} 33. Bh7+ {[%clk 0:00:20]}  Kh8 {[%clk 0:01:06]} 34. Qg6 {[%clk 0:00:21]} 1-0


[Site "https://www.chess.com"]

[Event "Titled Tuesday Blitz November 16 2021"]
[White "Sjugirov, Sanan"]
[Black "Bologan, Victor"]
[WhiteFideId "4189302"]
[BlackFideId "13900048"]
[WhiteElo "2653"]
[BlackElo "2472"]
[Result "1/2-1/2"]
[Round "04"]
[TimeControl "180+1"]
[Date "2021.11.16"]
[WhiteClock "0:00:04"]
[BlackClock "0:00:20"]

1. e4 {[%clk 0:03:00]}  e5 {[%clk 0:02:59]} 2. Nf3 {[%clk 0:03:00]}  Nc6 {[%clk 0:02:59]} 3. Bb5 {[%clk 0:03:00]}  a6 {[%clk 0:02:59]} 4. Ba4 {[%clk 0:03:00]}  Nf6 {[%clk 0:02:59]} 5. O-O {[%clk 0:03:00]}  Nxe4 {[%clk 0:02:58]} 6. d4 {[%clk 0:02:59]}  b5 {[%clk 0:02:58]} 7. Bb3 {[%clk 0:02:59]}  d5 {[%clk 0:02:58]} 8. dxe5 {[%clk 0:02:59]}  Be6 {[%clk 0:02:58]} 9. Qe2 {[%clk 0:02:59]}  Be7 {[%clk 0:02:52]} 10. Rd1 {[%clk 0:02:58]}  O-O {[%clk 0:02:51]} 11. c4 {[%clk 0:02:58]}  bxc4 {[%clk 0:02:50]} 12. Bxc4 {[%clk 0:02:58]}  Bc5 {[%clk 0:02:46]} 13. Be3 {[%clk 0:02:57]}  Bxe3 {[%clk 0:02:44]} 14. Qxe3 {[%clk 0:02:57]}  Qb8 {[%clk 0:02:44]} 15. Bb3 {[%clk 0:02:57]}  Na5 {[%clk 0:02:40]} 16. Nd4 {[%clk 0:02:56]}  c5 {[%clk 0:02:37]} 17. Nxe6 {[%clk 0:02:55]}  fxe6 {[%clk 0:02:35]} 18. f3 {[%clk 0:02:50]}  c4 {[%clk 0:02:33]} 19. fxe4 {[%clk 0:02:48]}  cxb3 {[%clk 0:02:33]} 20. exd5 {[%clk 0:02:44]}  bxa2 {[%clk 0:02:30]} 21. Rxa2 {[%clk 0:02:42]}  Nc4 {[%clk 0:02:17]} 22. Qd4 {[%clk 0:02:31]}  Qb3 {[%clk 0:01:58]} 23. Nc3 {[%clk 0:02:30]}  Rac8 {[%clk 0:01:17]} 24. dxe6 {[%clk 0:01:30]}  Nxb2 {[%clk 0:01:05]} 25. e7 {[%clk 0:01:29]}  Rfe8 {[%clk 0:00:30]} 26. Rf1 {[%clk 0:00:36]}  Qxc3 {[%clk 0:00:22]} 27. Qxc3 {[%clk 0:00:05]}  Rxc3 {[%clk 0:00:22]} 28. Rxb2 {[%clk 0:00:05]}  Rc7 {[%clk 0:00:20]} 29. Rb6 {[%clk 0:00:03]}  Rcxe7 {[%clk 0:00:20]} 30. Rxa6 {[%clk 0:00:04]}  Rxe5 {[%clk 0:00:20]} 31. Ra2 {[%clk 0:00:04]}  R5e7 {[%clk 0:00:21]} 32. Raf2 {[%clk 0:00:04]}  Re6 {[%clk 0:00:20]} 1/2-1/2


[Site "https://www.chess.com"]

[Event "Titled Tuesday Blitz November 16 2021"]
[White "Svidler, Peter"]
[Black "Pichot, Alan"]
[WhiteFideId "4102142"]
[BlackFideId "110973"]
[WhiteElo "2709"]
[BlackElo "2600"]
[Result "1-0"]
[Round "04"]
[TimeControl "180+1"]
[Date "2021.11.16"]
[WhiteClock "0:00:22"]
[BlackClock "0:00:03"]

1. e4 {[%clk 0:03:00]}  c5 {[%clk 0:02:57]} 2. Nf3 {[%clk 0:03:00]}  e6 {[%clk 0:02:57]} 3. d4 {[%clk 0:03:00]}  cxd4 {[%clk 0:02:58]} 4. Nxd4 {[%clk 0:03:00]}  Nc6 {[%clk 0:02:59]} 5. Nc3 {[%clk 0:02:59]}  Qc7 {[%clk 0:02:59]} 6. Be3 {[%clk 0:02:58]}  a6 {[%clk 0:02:59]} 7. g4 {[%clk 0:02:57]}  b5 {[%clk 0:02:53]} 8. Nxc6 {[%clk 0:02:54]}  Qxc6 {[%clk 0:02:54]} 9. Qd2 {[%clk 0:02:55]}  b4 {[%clk 0:02:51]} 10. Ne2 {[%clk 0:02:54]}  Qxe4 {[%clk 0:02:51]} 11. Rg1 {[%clk 0:02:53]}  Qc4 {[%clk 0:02:50]} 12. Ng3 {[%clk 0:02:52]}  Qc7 {[%clk 0:02:48]} 13. O-O-O {[%clk 0:02:52]}  Nf6 {[%clk 0:02:44]} 14. Nh5 {[%clk 0:02:51]}  Bb7 {[%clk 0:02:09]} 15. Nxf6+ {[%clk 0:02:42]}  gxf6 {[%clk 0:02:10]} 16. Bb6 {[%clk 0:02:42]}  Qc6 {[%clk 0:01:54]} 17. Bg2 {[%clk 0:02:37]}  d5 {[%clk 0:01:54]} 18. Bd4 {[%clk 0:02:35]}  Rc8 {[%clk 0:01:47]} 19. Kb1 {[%clk 0:02:33]}  Rg8 {[%clk 0:01:34]} 20. h3 {[%clk 0:02:28]}  e5 {[%clk 0:01:17]} 21. Rge1 {[%clk 0:02:24]}  Be7 {[%clk 0:01:14]} 22. Be3 {[%clk 0:02:16]}  Rd8 {[%clk 0:01:02]} 23. f4 {[%clk 0:02:15]}  e4 {[%clk 0:01:00]} 24. Bd4 {[%clk 0:02:09]}  h5 {[%clk 0:00:54]} 25. gxh5 {[%clk 0:02:06]}  f5 {[%clk 0:00:54]} 26. Rg1 {[%clk 0:02:04]}  a5 {[%clk 0:00:46]} 27. h4 {[%clk 0:01:51]}  Qh6 {[%clk 0:00:38]} 28. Qe2 {[%clk 0:01:41]}  Rg4 {[%clk 0:00:32]} 29. Bh3 {[%clk 0:01:34]}  Ba6 {[%clk 0:00:32]} 30. Qe3 {[%clk 0:01:20]}  Qxh5 {[%clk 0:00:16]} 31. Bxg4 {[%clk 0:01:18]}  fxg4 {[%clk 0:00:17]} 32. Bc5 {[%clk 0:01:05]}  d4 {[%clk 0:00:12]} 33. Bxd4 {[%clk 0:01:04]}  g3 {[%clk 0:00:12]} 34. Qxg3 {[%clk 0:01:01]}  Be2 {[%clk 0:00:09]} 35. Rd2 {[%clk 0:00:57]}  Bf3 {[%clk 0:00:07]} 36. b3 {[%clk 0:00:44]}  Rd5 {[%clk 0:00:07]} 37. Qg8+ {[%clk 0:00:30]}  Bf8 {[%clk 0:00:07]} 38. Be3 {[%clk 0:00:26]}  Rxd2 {[%clk 0:00:07]} 39. Bxd2 {[%clk 0:00:26]}  Qc5 {[%clk 0:00:04]} 40. Rg5 {[%clk 0:00:23]}  Qd6 {[%clk 0:00:04]} 41. Re5+ {[%clk 0:00:23]}  Kd8 {[%clk 0:00:03]} 42. Qxf7 {[%clk 0:00:22]}  Be7 {[%clk 0:00:03]} 43. Rd5 {[%clk 0:00:22]} 1-0


[Site "https://www.chess.com"]